[Event "10th Cesme Open-A 2024"]
[Site "Cesme"]
[Date "2024.06.25"]
[Round "3"]
[White "Emir, Emirhan"]
[Black "Selbes, Tamer Tarik"]
[Result "1/2-1/2"]
[ECO "A14"]
[WhiteElo "2006"]
[BlackElo "2183"]
[Annotator "RC"]
[PlyCount "206"]
[EventDate "2024.06.23"]
[EventType "swiss"]
[EventCountry "TUR"]
[SourceTitle "playchess.com"]
[Source "ChessBase"]
[SourceQuality "1"]
[TimeControl "5400+30"]

1. c4 {[%emt 0:07:00]} e6 {[%emt 0:03:00]} 2. Nf3 {[%emt 0:00:30]} Nf6 {[%emt 0:00:30]} 3. g3 {[%emt 0:00:30]} d5 {[%emt 0:00:00]} 4. Bg2 {[%emt 0:00:30]} Be7 {[%emt 0:00:00]} 5. O-O {[%emt 0:00:30]} O-O {[%emt 0:00:30]} 6. b3 {[%emt 0:01:30]} a5 {[%emt 0:03:30]} 7. Nc3 {[%emt 0:03:30]} c6 {[%emt 0:02:30]} 8. d4 {[%emt 0:01:30]} Nbd7 {[%emt 0:00:30]} 9. Qc2 {[%emt 0:01:30]} h6 {[%emt 0:07:30]} 10. Rd1 {[%emt 0:02:30]} Re8 {[%emt 0:01:30]} 11. e4 {[%emt 0:08:30]} dxe4 {[%emt 0:00:30]} 12. Ne5 {[%emt 0:00:30]} Qc7 {[%emt 0:08:30]} 13. Nxd7 {[%emt 0:13:30]} Bxd7 {[%emt 0:00:30]} 14. Nxe4 {[%emt 0:00:30]} Nxe4 {[%emt 0:01:30]} 15. Bxe4 {[%emt 0:00:00]} a4 {[%emt 0:05:30]} 16. Bf4 {[%emt 0:03:00]} Qa5 {[%emt 0:04:30]} 17. c5 {[%emt 0:00:30]} axb3 {[%emt 0:01:30]} 18. Qxb3 {[%emt 0:00:30]} Ra7 {[%emt 0:00:30]} 19. a4 {[%emt 0:04:30]} Bf6 {[%emt 0:00:30]} 20. Be5 {[%emt 0:01:30]} Be7 {[%emt 0:05:30]} 21. Bc2 {[%emt 0:02:30]} Rea8 {[%emt 0:09:30]} 22. Qd3 {[%emt 0:05:30]} g6 {[%emt 0:00:30]} 23. Rab1 {[%emt 0:01:30]} Qd8 {[%emt 0:00:00]} 24. h4 {[%emt 0:00:30]} h5 {[%emt 0:00:00]} 25. Qe3 {[%emt 0:03:30]} Bf8 {[%emt 0:04:30]} 26. Rb2 {[%emt 0:00:00]} Bc8 {[%emt 0:00:30]} 27. Qf4 {[%emt 0:02:00]} Bg7 {[%emt 0:02:30]} 28. Bc7 {[%emt 0:03:30]} Qd5 {[%emt 0:00:30]} 29. Bb3 {[%emt 0:05:30]} Qd7 {[%emt 0:01:30]} 30. Ra2 {[%emt 0:08:30]} Qe8 {[%emt 0:02:30]} 31. a5 {[%emt 0:00:38]} e5 {[%emt 0:04:30]} 32. dxe5 {[%emt 0:01:32]} Be6 {[%emt 0:01:30]} 33. Bxe6 {[%emt 0:00:30]} Qxe6 {[%emt 0:00:30]} 34. Rad2 {[%emt 0:00:00]} Rxa5 {[%emt 0:00:30]} 35. Bxa5 {[%emt 0:03:31]} Rxa5 {[%emt 0:00:30]} 36. Rd8+ {[%emt 0:00:30]} Kh7 {[%emt 0:00:30]} 37. R8d7 {[%emt 0:00:00]} Ra1 {[%emt 0:01:30]} 38. Rxa1 {[%emt 0:01:37]} Qxd7 {[%emt 0:00:00]} 39. Qe4 {[%emt 0:01:49]} Qe7 {[%emt 0:03:00]} 40. Rb1 {[%emt 0:01:33]} Bxe5 {[%emt 0:00:30]} 41. Kg2 {[%emt 0:00:48]} Qxc5 {[%emt 0:01:30]} 42. Rxb7 {[%emt 0:00:36]} Kg7 {[%emt 0:00:00]} 43. Rd7 {[%emt 0:02:20]} Qc3 {[%emt 0:02:00]} 44. Rd3 {[%emt 0:00:29]} Qc5 {[%emt 0:00:30]} 45. Rd7 {[%emt 0:01:00]} Qc3 {[%emt 0:00:00]} 46. Rd3 {[%emt 0:01:55]} Qc5 {[%emt 0:00:00]} 47. Rd8 {[%emt 0:00:52]} Qc3 {[%emt 0:02:30]} 48. Rc8 {[%emt 0:01:13]} c5 {[%emt 0:06:10]} 49. Qd5 {[%emt 0:00:02]} Qd4 {[%emt 0:03:43]} 50. Rxc5 {[%emt 0:00:42]} Qxd5+ {[%emt 0:00:30]} 51. Rxd5 {[%emt 0:00:00]} Kf6 {[%emt 0:00:40]} 52. Kf3 {[%emt 0:00:05]} Bc3 {[%emt 0:00:00]} 53. Ke4 {[%emt 0:01:07]} Be1 {[%emt 0:00:20]} 54. Rd1 {[%emt 0:00:00]} Bb4 {[%emt 0:00:19]} 55. Rb1 {[%emt 0:00:23]} Bc3 {[%emt 0:00:53]} 56. Rb6+ {[%emt 0:01:00]} Kg7 {[%emt 0:00:06]} 57. Rb3 {[%emt 0:03:57]} Ba1 {[%emt 0:00:37]} 58. Kd5 {[%emt 0:00:59]} Bf6 {[%emt 0:00:18]} 59. f4 {[%emt 0:01:51]} Ba1 {[%emt 0:00:37]} 60. Rd3 {[%emt 0:01:30]} Bb2 {[%emt 0:00:51]} 61. Ke4 {[%emt 0:01:14]} Bf6 {[%emt 0:00:54]} 62. Rd7 {[%emt 0:00:24]} Kf8 {[%emt 0:00:19]} 63. f5 {[%emt 0:00:16]} g5 {[%emt 0:00:04]} 64. hxg5 {[%emt 0:01:08]} Bxg5 {[%emt 0:00:30]} 65. Ke5 {[%emt 0:00:30]} Kg7 {[%emt 0:00:30]} 66. Rd6 {[%emt 0:00:30]} h4 {[%emt 0:00:30]} 67. g4 {[%emt 0:00:30]} Be3 {[%emt 0:00:30]} 68. Ke4 {[%emt 0:00:30]} Bc1 {[%emt 0:00:30]} 69. Ra6 {[%emt 0:00:30]} Bd2 {[%emt 0:00:30]} 70. Kf3 {[%emt 0:00:30]} Bc1 {[%emt 0:00:30]} 71. Ra1 {[%emt 0:00:30]} Bg5 {[%emt 0:00:30]} 72. Ke4 {[%emt 0:00:30]} Bf6 {[%emt 0:00:30]} 73. Ra6 {[%emt 0:00:30]} Bg5 {[%emt 0:00:30]} 74. Ra8 {[%emt 0:00:30]} Bd2 {[%emt 0:00:30]} 75. Rd8 {[%emt 0:00:30]} Bg5 {[%emt 0:00:30]} 76. Rc8 {[%emt 0:00:30]} Bd2 {[%emt 0:00:30]} 77. Kf3 {[%emt 0:00:30]} Bg5 {[%emt 0:00:30]} 78. Rc3 {[%emt 0:01:25]} Bd2 {[%emt 0:06:40]} 79. Rd3 {[%emt 0:00:15]} Bc1 {[%emt 0:00:13]} 80. Rd1 {[%emt 0:00:30]} Bg5 {[%emt 0:00:30]} 81. Rh1 {[%emt 0:00:00]} Kh6 {[%emt 0:00:54]} 82. Kg2 {[%emt 0:01:14]} Kg7 {[%emt 0:00:51]} 83. Kh3 {[%emt 0:00:01]} Kf6 {[%emt 0:00:45]} 84. Ra1 {[%emt 0:00:41]} Kg7 {[%emt 0:00:41]} 85. Ra8 {[%emt 0:00:02]} Kh7 {[%emt 0:00:03]} 86. Kg2 {[%emt 0:00:42]} Kg7 {[%emt 0:00:30]} 87. Kf3 {[%emt 0:00:00]} Bd2 {[%emt 0:00:00]} 88. Ke4 {[%emt 0:01:52]} Bg5 {[%emt 0:00:19]} 89. Ra3 {[%emt 0:00:00]} Kh6 {[%emt 0:04:11]} 90. Ra6+ {[%emt 0:00:27]} Kg7 {[%emt 0:00:04]} 91. Rc6 {[%emt 0:00:38]} Bd2 {[%emt 0:00:47]} 92. Kd3 {[%emt 0:00:39]} Bf4 {[%emt 0:00:04]} 93. Rc4 {[%emt 0:00:23]} Bg5 {[%emt 0:01:04]} 94. Rc2 {[%emt 0:00:16]} Bf4 {[%emt 0:00:28]} 95. Ke4 {[%emt 0:00:30]} Bg5 {[%emt 0:00:01]} 96. Ke5 {[%emt 0:00:02]} Be3 {[%emt 0:01:02]} 97. Rh2 {[%emt 0:00:40]} Bg5 {[%emt 0:00:10]} 98. Rg2 {[%emt 0:00:34]} Kh6 {[%emt 0:00:30]} 99. Rh2 {[%emt 0:01:06]} Bd8 {[%emt 0:00:28]} 100. Ke4 {[%emt 0:00:26]} Bg5 {[%emt 0:01:18]} 101. Rh3 {[%emt 0:00:35]} Bd8 {[%emt 0:00:21]} 102. Kf4 {[%emt 0:00:25]} Bc7+ {[%emt 0:00:15]} 103. Kf3 {[%emt 0:00:01]} Bd8 {[%emt 0:00:31]} 1/2-1/2

[Event "10th Cesme Open-A 2024"]
[Site "Cesme"]
[Date "2024.06.28"]
[Round "7"]
[White "Bernadskiy, Vitaliy"]
[Black "Ince, Taylan Ruzgar"]
[Result "1-0"]
[ECO "C01"]
[WhiteElo "2563"]
[BlackElo "2243"]
[Annotator "TA"]
[PlyCount "99"]
[EventDate "2024.06.23"]
[EventType "swiss"]
[EventCountry "TUR"]
[SourceTitle "playchess.com"]
[Source "ChessBase"]
[SourceQuality "1"]
[TimeControl "5400+30"]

{[%evp 12,99,0,0,14,0,-5,-20,0,-22,-8,0,0,0,0,0,12,9,13,11,31,2,14,13,14,17,14,0,0,0,0,0,4,0,0,-18,-12,-34,0,0,12,9,8,0,47,12,60,0,0,15,16,0,0,-16,84,90,100,92,96,60,131,135,129,148,232,218,240,229,237,220,244,250,368,370,386,256,248,189,252,246,360,356,371,226,418,404,560,336,581,400]} 1. e4 {[%emt 0:01:00]} e6 {[%emt 0:01:00]} 2. d4 {[%emt 0:01:30]} d5 {[%emt 0:00:30]} 3. exd5 {[%emt 0:00:30]} exd5 {[%emt 0:00:00]} 4. Nf3 {[%emt 0:00:00]} Bd6 {[%emt 0:00:00]} 5. c4 {[%emt 0:00:00][%cal Bc2c4,Bc4c5][%mdl 32]} Nf6 {[%emt 0:00:30]} 6. c5 {[%emt 0:02:30]} Be7 {[%emt 0:00:30]} 7. Bd3 {[%emt 0:00:00]} O-O {[%emt 0:00:30]} 8. h3 {[%emt 0:00:00]} b6 {[%emt 0:00:30]} 9. cxb6 {[%emt 0:00:30]} axb6 {[%emt 0:00:30] The position is equal.} 10. O-O {[%emt 0:00:30]} c5 {[%emt 0:00:30]} 11. Nc3 {[%emt 0:00:00]} Nc6 {[%emt 0:02:30]} 12. Bf4 {[%emt 0:00:00]} Nb4 {[%emt 0:13:30]} 13. Bb1 {[%emt 0:01:30]} Ba6 {[%emt 0:10:30]} 14. Re1 {[%emt 0:00:00]} Re8 {[%emt 0:00:30]} 15. a3 {[%emt 0:05:00]} Nc6 {[%emt 0:01:30]} 16. Bc2 {[%emt 0:00:30]} Nxd4 {[%emt 0:07:30]} 17. Nxd4 {[%emt 0:02:30]} cxd4 {[%emt 0:01:30]} 18. Qxd4 {[%emt 0:00:00]} Bc5 {[%emt 0:00:30]} 19. Qd2 {[%emt 0:00:00]} d4 {[%emt 0:00:00]} 20. Rxe8+ {[%emt 0:02:30]} Qxe8 {[%emt 0:00:00]} 21. Re1 {[%emt 0:00:30]} Qd8 {[%emt 0:02:30]} 22. Ne4 {[%emt 0:05:30] [#] Threatens to win with Nxf6+.} d3 {[%emt 0:05:30]} 23. Bb3 {[%emt 0:10:30]} Nxe4 {[%emt 0:04:30]} 24. Rxe4 {[%emt 0:00:00]} Qd7 {[%emt 0:04:30]} 25. Bh6 {[%emt 0:06:00][%cal Oh6g7]} Qd6 {[%emt 0:12:30]} (25... gxh6 26. Rg4+ Kf8 27. Qxh6+ Ke7 28. Qg5+ (28. Qxh7 $2 Rf8 $19) 28... Kd6 29. Qd5+ Kc7 30. Qxa8 $16) 26. Rg4 {[%emt 0:10:30]} Bd4 {[%emt 0:01:30]} 27. Bf4 {[%emt 0:05:30]} Qf6 {[%emt 0:17:52]} (27... Qc6 $11 {deserves consideration.}) 28. Bg5 {[%emt 0:00:30]} Qe5 {[%emt 0:00:48]} (28... Qd6 $1 $11) 29. Bh6 {[%emt 0:03:30]} (29. Qb4 $5 Bc5 30. Bxf7+ Kh8 (30... Kxf7 31. Qb3+ Ke8 32. Qg8+ Bf8 33. Rf4 $16) 31. Qe4 Qxe4 32. Rxe4 $16) 29... Qd6 $1 {[%emt 0:00:04]} 30. Be3 {[%emt 0:04:30] Really sharp!} Bxe3 {[%emt 0:03:18]} 31. Qxe3 {[%emt 0:00:30][%cal Ob3f7] Bxf7+! would now be deadly.} Rd8 {[%emt 0:00:00]} 32. Qf3 {[%emt 0:04:30]} Rf8 {[%emt 0:01:14]} (32... Qe7 $1 $11 {remains equal.}) 33. Rf4 $16 {[%emt 0:02:30][%cal Rf4f7] White is more active.} Qc7 {[%emt 0:06:03]} 34. Qe3 $40 {[%emt 0:01:30][%cal Of4f7][%mdl 128] Prevents d2. White wants a kill.} Bb5 {[%emt 0:03:48]} 35. a4 {[%emt 0:03:30]} Bd7 {[%emt 0:00:12]} (35... Bc6 $1 $14) 36. Rc4 {[%emt 0:01:30]} Qb8 {[%emt 0:01:00]} 37. Qxd3 {[%emt 0:00:30]} Be6 {[%emt 0:00:20]} (37... Re8 $16 38. Qd2 (38. Qxd7 $2 Re1#) 38... Be6) 38. Rh4 $18 {[%emt 0:00:30]} h6 {[%emt 0:00:36]} 39. Bxe6 {[%emt 0:02:30]} fxe6 {[%emt 0:00:03][%mdl 4096] Endgame. KQR-KQR} 40. Qe3 {[%emt 0:00:00][%cal Oh4b4] Dodges Qe5. And now Rb4! would win.} Qd6 {[%emt 0:00:51]} 41. Rd4 {[%emt 0:01:00]} Qc6 {[%emt 0:00:10]} (41... Qe7 $142 42. b3 Rf6) 42. Rb4 {[%emt 0:00:00]} Rb8 {[%emt 0:01:25]} 43. Rg4 {[%emt 0:00:00]} Qd7 {[%emt 0:00:00]} 44. Kh2 {[%emt 0:01:30]} (44. Qxh6 $2 Qd1+ 45. Kh2 Qxg4 $19) 44... Qc7+ {[%emt 0:00:38]} (44... Qd6+ {is a better defense.} 45. Qg3 Qxg3+ 46. Kxg3 Kf7) 45. g3 {[%emt 0:05:30]} Qf7 {[%emt 0:00:32]} (45... Kh8 {keeps fighting.} 46. Rb4 (46. Qxe6 Qc2 $16) 46... Qc2) 46. Rb4 {[%emt 0:00:30]} (46. Qxh6 Qxf2+ 47. Kh1 Qf1+ 48. Kh2 Qe2+ 49. Kg1 Qxg4 $19 (49... Qxb2 50. Qxe6+ Kf8 51. Rf4+)) 46... Rf8 {[%emt 0:00:32]} 47. Kg1 {[%emt 0:02:30]} (47. Qxb6 e5 48. Qe3 Qe7 49. Qb3+ Rf7 $18) 47... e5 $2 {[%emt 0:00:47]} (47... Qd7 {was necessary.} 48. Qd4 (48. Rxb6 Qxa4 49. Qxe6+ Kh8 $18) 48... Qxd4 49. Rxd4 Rc8) 48. Rxb6 {[%emt 0:00:30][%cal Oa4a5] [#] Hoping for a5!} (48. Qxe5 $2 Qxf2+ 49. Kh1 Qf1+ 50. Kh2 Rf2#) 48... Qf5 {[%emt 0:00:01]} 49. Kg2 {[%emt 0:00:30] Strongly threatening a5.} Qc2 $2 {[%emt 0:00:07]} (49... Qc8 {was called for.} 50. Rb4 (50. Qxe5 Qa8+ 51. Kg1 Qxa4 $18) 50... Kh8 51. Qxe5 Qc6+ 52. Qe4 Qxe4+ 53. Rxe4 Ra8) 50. Qb3+ {[%emt 0:00:30] Weighted Error Value: White=0.20 (precise) /Black=0.36.  Mistake:       	---       	Black=10     Inaccurate:     	White=9     	Black=2      OK:         	White=21    	Black=10     Best:        	White=3     	Black=3      Strong:       	---       	Black=1} (50. Qxe5 $2 {gets mated.} Qxf2+ (50... Rxf2+ {is a self mate.} 51. Kg1 Rg2+ 52. Kh1 Rh2+ 53. Kg1 Qg2#) 51. Kh1 Qf1+ 52. Kh2 Rf2#) 1-0

[Event "10th Cesme Open-A 2024"]
[Site "Cesme"]
[Date "2024.06.28"]
[Round "7"]
[White "Kovalev, Vladislav"]
[Black "Zerey, Demhat"]
[Result "1/2-1/2"]
[ECO "D02"]
[WhiteElo "2559"]
[BlackElo "2038"]
[Annotator "RC"]
[PlyCount "177"]
[EventDate "2024.06.23"]
[EventType "swiss"]
[EventCountry "TUR"]
[SourceTitle "playchess.com"]
[Source "ChessBase"]
[SourceQuality "1"]
[TimeControl "5400+30"]

1. d4 {[%emt 0:01:00]} d5 {[%emt 0:01:00]} 2. Nf3 {[%emt 0:00:30]} Nf6 {[%emt 0:00:30]} 3. Bf4 {[%emt 0:00:00]} e6 {[%emt 0:00:30]} 4. e3 {[%emt 0:00:00]} Bd6 {[%emt 0:01:30]} 5. Bg3 {[%emt 0:04:30]} O-O {[%emt 0:00:30]} 6. Nbd2 {[%emt 0:02:30]} c5 {[%emt 0:01:30]} 7. c3 {[%emt 0:00:00]} Qc7 {[%emt 0:00:30]} 8. Bxd6 {[%emt 0:03:00]} Qxd6 {[%emt 0:00:30]} 9. Ne5 {[%emt 0:01:30]} Nfd7 {[%emt 0:09:30]} 10. Ndf3 {[%emt 0:23:30]} Nc6 {[%emt 0:09:30]} 11. Nxd7 {[%emt 0:03:30]} Bxd7 {[%emt 0:00:30]} 12. Qb3 {[%emt 0:00:30]} c4 {[%emt 0:08:30]} 13. Qc2 {[%emt 0:00:30]} b5 {[%emt 0:02:30]} 14. Be2 {[%emt 0:02:30]} Rab8 {[%emt 0:03:30]} 15. a3 {[%emt 0:01:30]} a5 {[%emt 0:02:30]} 16. O-O {[%emt 0:01:30]} b4 {[%emt 0:06:30]} 17. axb4 {[%emt 0:00:00]} axb4 {[%emt 0:00:30]} 18. e4 {[%emt 0:00:00]} b3 {[%emt 0:03:30]} 19. Qc1 {[%emt 0:06:30]} Ra8 {[%emt 0:02:30]} 20. Qe3 {[%emt 0:00:30]} Ra2 {[%emt 0:08:30]} 21. e5 {[%emt 0:10:30]} Qc7 {[%emt 0:00:30]} 22. Rxa2 {[%emt 0:12:30]} bxa2 {[%emt 0:00:30]} 23. Ra1 {[%emt 0:00:00]} Ra8 {[%emt 0:04:30]} 24. Bd1 {[%emt 0:00:00]} Qb8 {[%emt 0:02:30]} 25. Qd2 {[%emt 0:06:30]} Ne7 {[%emt 0:00:30]} 26. Ne1 {[%emt 0:02:04]} Ng6 {[%emt 0:03:30]} 27. g3 {[%emt 0:00:42]} f6 {[%emt 0:04:30]} 28. exf6 {[%emt 0:04:29]} gxf6 {[%emt 0:00:00]} 29. Ng2 {[%emt 0:02:20]} Kh8 {[%emt 0:01:00]} 30. Ne3 {[%emt 0:00:22]} Ne7 {[%emt 0:02:30]} 31. Ng4 {[%emt 0:00:55]} Ng8 {[%emt 0:00:30]} 32. Ne3 {[%emt 0:04:46]} Be8 {[%emt 0:00:30]} 33. Ng2 {[%emt 0:01:35]} Ra6 {[%emt 0:01:30]} 34. Nf4 {[%emt 0:00:14]} Bg6 {[%emt 0:00:59]} 35. Bg4 {[%emt 0:01:09]} Bf7 {[%emt 0:04:17]} 36. h4 {[%emt 0:00:18]} e5 {[%emt 0:02:53]} 37. Bh5 {[%emt 0:05:53]} Bxh5 {[%emt 0:02:04]} 38. Nxh5 {[%emt 0:00:01]} Qe8 {[%emt 0:01:12]} 39. Qd1 {[%emt 0:01:41]} Qg6 {[%emt 0:00:57]} 40. Kg2 {[%emt 0:00:18]} Qe4+ {[%emt 0:04:53]} 41. Qf3 {[%emt 0:00:41]} Qb1 {[%emt 0:03:25]} 42. dxe5 {[%emt 0:00:26]} Qxa1 {[%emt 0:00:49]} 43. Qg4 {[%emt 0:00:05]} Qh1+ {[%emt 0:01:16]} 44. Kxh1 {[%emt 0:00:30]} a1=Q+ {[%emt 0:00:00]} 45. Kh2 {[%emt 0:00:51]} Ra7 {[%emt 0:00:11]} 46. exf6 {[%emt 0:00:19]} h6 {[%emt 0:00:49]} 47. Qd4 {[%emt 0:00:42]} Rf7 {[%emt 0:00:44]} 48. g4 {[%emt 0:00:30]} Qa7 {[%emt 0:00:00]} 49. Qxa7 {[%emt 0:01:06]} Rxa7 {[%emt 0:00:15]} 50. Kg3 {[%emt 0:00:30]} Kh7 {[%emt 0:00:30]} 51. f4 {[%emt 0:00:30]} Kg6 {[%emt 0:00:30]} 52. f5+ {[%emt 0:00:30]} Kf7 {[%emt 0:00:30]} 53. g5 {[%emt 0:00:30]} hxg5 {[%emt 0:00:30]} 54. hxg5 {[%emt 0:00:30]} Kf8 {[%emt 0:00:30]} 55. Nf4 {[%emt 0:00:30]} Nxf6 {[%emt 0:00:30]} 56. gxf6 {[%emt 0:00:30]} Ra5 {[%emt 0:00:30]} 57. Kg4 {[%emt 0:00:30]} Kf7 {[%emt 0:00:30]} 58. Kg5 {[%emt 0:00:30]} Rb5 {[%emt 0:00:30]} 59. Ng6 {[%emt 0:00:30]} Rxb2 {[%emt 0:00:30]} 60. Ne5+ {[%emt 0:00:30]} Kf8 {[%emt 0:00:30]} 61. Kf4 {[%emt 0:00:30]} d4 {[%emt 0:00:30]} 62. cxd4 {[%emt 0:00:30]} c3 {[%emt 0:00:30]} 63. Ke3 {[%emt 0:00:30]} Rd2 {[%emt 0:00:30]} 64. Nd3 {[%emt 0:00:30]} Kf7 {[%emt 0:00:30]} 65. Nb4 {[%emt 0:00:30]} Rd1 {[%emt 0:00:30]} 66. Ke4 {[%emt 0:00:30]} Rd2 {[%emt 0:00:30]} 67. Ke3 {[%emt 0:00:30]} Rd1 {[%emt 0:00:30]} 68. Ke4 {[%emt 0:00:30]} Rb1 {[%emt 0:00:30]} 69. Nc2 {[%emt 0:00:30]} Rh1 {[%emt 0:00:30]} 70. Kd3 {[%emt 0:00:30]} Rh3+ {[%emt 0:00:30]} 71. Kc4 {[%emt 0:00:30]} Kxf6 {[%emt 0:01:31]} 72. d5 {[%emt 0:00:07]} Kxf5 {[%emt 0:00:13]} 73. Kd4 {[%emt 0:00:24]} Kf6 {[%emt 0:00:01]} 74. Na3 {[%emt 0:00:31]} Ke7 {[%emt 0:00:24]} 75. Kc4 {[%emt 0:00:08]} Kd7 {[%emt 0:00:21]} 76. Kd4 {[%emt 0:00:21]} Rg3 {[%emt 0:00:43]} 77. Kc4 {[%emt 0:00:14]} Kc8 {[%emt 0:00:34]} 78. Kb4 {[%emt 0:00:45]} Kb7 {[%emt 0:00:04]} 79. Kc4 {[%emt 0:00:18]} Kb6 {[%emt 0:00:06]} 80. Kb4 {[%emt 0:00:09]} Ka6 {[%emt 0:00:11]} 81. Kc4 {[%emt 0:01:07]} Ka5 {[%emt 0:00:45]} 82. d6 {[%emt 0:00:32]} Kb6 {[%emt 0:00:15]} 83. d7 {[%emt 0:00:05]} Kc7 {[%emt 0:00:01]} 84. Nb5+ {[%emt 0:00:06]} Kxd7 {[%emt 0:00:00]} 85. Nxc3 {[%emt 0:00:00]} Kc6 {[%emt 0:00:07]} 86. Ne4 {[%emt 0:00:07]} Rh3 {[%emt 0:00:27]} 87. Kd4 {[%emt 0:00:05]} Rh5 {[%emt 0:00:02]} 88. Kc4 {[%emt 0:00:20]} Rd5 {[%emt 0:00:06]} 89. Nc3 {[%emt 0:00:06]} 1/2-1/2